bitfinex-derivatives/quotes_BTCF0:USTF0_20251202
["timestamp","ask_amount","ask_price","bid_price","bid_amount"]
[1764691384128,0.55921295,91243.0,91242.0,0.6877495]
[1764691384329,0.55921295,91243.0,91237.0,0.3608]
[1764691384330,0.02945295,91243.0,91237.0,0.3608]
[1764691384531,0.68078,91237.0,91236.0,0.0001644]
[1764691384734,0.71023295,91237.0,91236.0,0.0001644]
[1764691384929,0.010961,91230.0,91228.0,0.3608]
[1764691385136,0.0109618,91223.0,91219.0,0.3608]
[1764691385325,0.0109618,91223.0,91206.0,0.3608]
[1764691385326,0.0109635,91209.0,91206.0,0.3608]
[1764691385537,0.010962,91221.0,91200.0,0.3608]
[1764691385538,0.3557844,91201.0,91200.0,0.3608]
[1764691385739,0.3557844,91201.0,91188.0,0.00010441]
[1764691385740,0.3557859,91189.0,91188.0,0.00010441]
[1764691385937,1.25091885,91189.0,91188.0,0.00010441]
[1764691386244,1.25091885,91189.0,91167.0,0.0109685]
[1764691386245,0.0109679,91172.0,91167.0,0.0109685]
[1764691386428,0.91997295,91189.0,91159.0,0.3608]
[1764691386429,0.55917295,91171.0,91159.0,0.3608]
[1764691386629,0.6917485,91167.0,91159.0,0.36091113]
[1764691386833,0.6917493,91160.0,91159.0,0.00011113]
[1764691387041,0.6917493,91160.0,91141.0,0.3608]
[1764691387042,0.0109712,91145.0,91141.0,0.3608]
[1764691387236,0.0109725,91134.0,91131.0,0.3608]
[1764691387430,0.02945295,91133.0,91131.0,0.3608]
[1764691387631,0.02945295,91133.0,91121.0,0.3608]
[1764691387632,1.52945295,91132.0,91121.0,0.3608]
[1764691387947,0.02955736,91131.0,91123.0,0.0109737]
[1764691388239,0.04042595,91130.0,91121.0,0.3608]
[1764691388445,0.00010441,91131.0,91121.0,0.010974]
[1764691388446,0.02945295,91129.0,91121.0,0.010974]
[1764691388640,0.55913295,91128.0,91120.0,0.3608]
[1764691388850,0.02945295,91127.0,91121.0,0.010974]
[1764691389032,0.02945295,91127.0,91126.0,0.67706435]
[1764691389337,0.02945295,91127.0,91126.0,1.07706435]
[1764691389541,0.44888686,91132.0,91131.0,0.6877628]
[1764691389739,0.010968,91171.0,91131.0,0.6877628]
[1764691389740,0.50516,91160.0,91131.0,0.3608]
[1764691389945,0.3717702,91153.0,91142.0,0.3608]
[1764691390131,0.0109696,91158.0,91147.0,0.0109709]
[1764691390331,0.0109709,91148.0,91142.0,0.3608]
[1764691390535,0.68078,91143.0,91142.0,0.3608]
[1764691390933,1.21094,91143.0,91142.0,0.3608]
[1764691391248,0.010972,91138.0,91133.0,0.00016459]
[1764691391631,0.5411315,91143.0,91133.0,0.00016459]
[1764691391835,0.68078,91134.0,91133.0,0.00016459]
[1764691392029,0.68078,91134.0,91106.0,9.073e-05]
[1764691392030,0.68078,91127.0,91112.0,0.3608]
[1764691392341,0.3608,91136.0,91120.0,0.3608]
[1764691392342,0.53016,91126.0,91120.0,0.3608]
[1764691392944,0.53016,91126.0,91121.0,0.010974]
[1764691393143,0.68078,91121.0,91113.0,0.010975]
[1764691393639,0.68078,91121.0,91111.0,0.0109752]
[1764691393835,0.0109742,91120.0,91110.0,0.3608]
[1764691394032,0.05833903,91124.0,91121.0,0.010974]
[1764691394238,0.5302,91123.0,91119.0,0.3608]
[1764691394440,0.68078,91111.0,91110.0,0.3608]
[1764691394645,0.05833903,91123.0,91110.0,0.3608]
[1764691394842,0.34482,91111.0,91110.0,0.3608]
[1764691395143,0.53012,91112.0,91110.0,0.3608]
[1764691395338,0.68078,91111.0,91110.0,0.3608]
[1764691395938,0.68078,91111.0,91106.0,9.073e-05]
[1764691395939,0.0109754,91110.0,91106.0,9.073e-05]
[1764691396248,0.68078,91107.0,91106.0,9.073e-05]
[1764691396544,0.87905,91102.0,91101.0,0.3608]
[1764691396950,0.87905,91102.0,91040.0,0.49288749]
[1764691396951,0.68078,91082.0,91065.0,0.3608]
[1764691397251,0.3608,91069.0,91063.0,0.010981]
[1764691397439,0.3608,91078.0,91063.0,0.010981]
[1764691397644,0.53012,91077.0,91067.0,0.0109805]
[1764691397941,0.53012,91077.0,91065.0,0.0109808]
[1764691397942,0.3608,91069.0,91065.0,0.0109808]
[1764691398540,0.00016469,91083.0,91082.0,0.0109787]
[1764691398841,0.00016469,91083.0,91082.0,0.6877687]
[1764691399044,0.3608,91095.0,91094.0,0.3567873]
[1764691399734,0.3608,91095.0,91089.0,0.0109779]
[1764691399935,0.53012,91100.0,91088.0,0.3608]
[1764691400148,0.3608,91132.0,91104.0,0.010976]
[1764691400445,0.53032,91131.0,91116.0,0.3608]
[1764691400640,0.53032,91131.0,91126.0,0.0109734]
[1764691400843,0.53032,91131.0,91116.0,0.3608]
[1764691401039,0.53032,91131.0,91116.0,0.3717746]
[1764691401243,0.010974,91121.0,91117.0,0.0109745]
[1764691401556,0.0109745,91118.0,91114.0,0.00016469]
[1764691401943,0.3608,91122.0,91118.0,0.0109743]
[1764691402255,0.3608,91123.0,91120.0,0.0109741]
[1764691402945,0.3608,91123.0,91115.0,0.3608]
[1764691402946,0.53032,91131.0,91115.0,0.3608]
[1764691403144,0.53032,91131.0,91129.0,0.0109731]
[1764691403351,0.02704556,91130.0,91123.0,0.3608]
[1764691403657,0.38784556,91129.0,91128.0,0.0109732]
[1764691403960,0.02704556,91129.0,91128.0,0.0109732]
[1764691404149,0.02704556,91129.0,91118.0,0.0109743]
[1764691404450,0.02704556,91128.0,91124.0,0.0109736]
[1764691404656,0.00016469,91133.0,91122.0,0.0109738]
[1764691404657,0.3608,91125.0,91122.0,0.0109738]
[1764691404856,0.02704556,91124.0,91122.0,0.0109738]
[1764691405641,0.02704556,91124.0,91115.0,0.3608]
[1764691405642,0.00016469,91133.0,91131.0,0.0109728]
[1764691405840,0.02708812,91132.0,91123.0,0.0109737]
[1764691406049,0.3608,91125.0,91123.0,0.0109737]
[1764691406356,0.02708812,91124.0,91123.0,0.0109737]
[1764691407645,0.37190812,91124.0,91123.0,0.0109737]
[1764691407851,0.02708812,91124.0,91123.0,1.0485637]
[1764691408055,0.00016469,91133.0,91132.0,0.6877627]
[1764691408255,0.00016469,91133.0,91132.0,1.0485627]
[1764691408450,0.02727083,91133.0,91132.0,1.0485627]
[1764691408648,3e-08,91133.0,91132.0,1.4485627]
[1764691408855,0.05833903,91159.0,91158.0,0.6877596]
[1764691409054,0.3608,91188.0,91165.0,0.0109687]
[1764691409055,0.05833903,91166.0,91165.0,0.0109687]
[1764691409252,0.52952,91185.0,91165.0,0.0109687]
[1764691409253,0.05833903,91169.0,91168.0,0.6877584]
[1764691409555,0.52952,91185.0,91162.0,0.3608]
[1764691409556,0.07782027,91177.0,91162.0,0.3608]
[1764691409855,0.70562,91163.0,91158.0,0.0001646]
[1764691410157,0.3608,91163.0,91158.0,0.0001646]
[1764691410351,0.3608,91163.0,91162.0,0.0109691]
[1764691410551,0.3608,91168.0,91167.0,0.0109685]
[1764691410750,0.3608,91168.0,91163.0,0.0109689]
[1764691410955,0.3608,91168.0,91158.0,0.0001646]
[1764691410956,0.0109692,91162.0,91158.0,0.0001646]
[1764691411155,0.70562,91159.0,91158.0,0.0001646]
[1764691411560,0.01097,91155.0,91133.0,0.3608]
[1764691411855,0.3608,91159.0,91133.0,0.3608]
[1764691411856,0.3608,91149.0,91133.0,0.3608]
[1764691412055,0.0109726,91133.0,91116.0,0.3608]
[1764691412365,0.0109704,91152.0,91116.0,0.3608]
[1764691412366,0.05838078,91145.0,91144.0,0.34581]
[1764691412657,0.05838078,91146.0,91144.0,0.3567813]
[1764691413062,0.05838078,91149.0,91148.0,0.0109708]
[1764691413247,0.3608,91151.0,91148.0,0.0109708]
[1764691414062,0.07798487,91154.0,91151.0,0.0109703]
[1764691414361,0.0001646,91154.0,91153.0,1.03416]
[1764691414559,0.07782027,91176.0,91173.0,0.0109678]
[1764691414861,0.07782027,91176.0,91153.0,0.3608]
[1764691414862,0.07782027,91178.0,91176.0,0.0109674]
[1764691415164,0.0109668,91181.0,91153.0,0.3608]
[1764691415165,0.33771,91159.0,91153.0,0.3608]
[1764691415353,0.0109696,91158.0,91153.0,0.0109701]
[1764691415662,0.3608,91159.0,91146.0,0.0001646]
[1764691415852,0.0109696,91158.0,91146.0,0.0001646]
[1764691416048,0.0109705,91151.0,91146.0,0.0001646]
[1764691416256,0.0109705,91151.0,91150.0,0.0109705]
[1764691416257,0.69356,91151.0,91150.0,0.0109705]
[1764691417156,0.69356,91151.0,91147.0,0.0109709]
[1764691417356,0.69356,91151.0,91150.0,0.0109705]
[1764691417857,0.7045309,91147.0,91146.0,0.0001646]
[1764691418058,0.7045309,91147.0,91124.0,0.3608]
[1764691418059,0.0109731,91130.0,91124.0,0.3608]
[1764691418261,0.3608,91126.0,91125.0,0.0109736]
[1764691418458,0.4393158,91136.0,91118.0,0.0109744]
[1764691418757,0.47451874,91140.0,91114.0,0.19162]
[1764691418758,0.69356,91115.0,91114.0,0.19162]
[1764691418957,1.05436,91115.0,91114.0,0.19162]
[1764691419160,1.05436,91115.0,91106.0,7.752e-05]
[1764691419457,1.05436,91115.0,91107.0,0.0109757]
[1764691419860,1.05436,91115.0,91112.0,0.0109751]
[1764691420059,0.3608,91115.0,91112.0,0.0109751]
[1764691420362,0.52848,91123.0,91112.0,0.0109751]
[1764691420363,0.0785158,91119.0,91118.0,0.0109744]
[1764691420554,0.0785158,91120.0,91118.0,0.0109744]
[1764691420757,0.10552491,91119.0,91118.0,0.0109744]
[1764691421158,0.72056911,91119.0,91112.0,0.371775]
[1764691421466,0.02700911,91118.0,91117.0,0.0109744]
[1764691421855,0.41625402,91118.0,91117.0,0.0109744]
[1764691422063,0.02700911,91118.0,91117.0,0.0109744]
[1764691422354,0.69356,91113.0,91112.0,0.3608]
[1764691422662,0.72056911,91113.0,91112.0,0.3608]
[1764691423662,0.36471911,91113.0,91112.0,0.3608]
[1764691424271,0.02700911,91113.0,91112.0,0.3608]
[1764691424656,0.72056911,91113.0,91112.0,0.3608]
[1764691427365,0.02700911,91113.0,91112.0,0.3608]
[1764691427559,0.36471911,91113.0,91112.0,0.3608]
[1764691427758,0.72056911,91113.0,91112.0,0.3608]
[1764691428153,0.02700911,91113.0,91112.0,1.03416]
[1764691429369,0.02700911,91113.0,91112.0,0.3608]
[1764691429567,0.36471911,91113.0,91112.0,0.3608]
[1764691429770,0.33771,91111.0,91110.0,0.10163]
[1764691429976,0.72056911,91111.0,91110.0,0.10163]
[1764691430466,0.69356,91107.0,91106.0,7.752e-05]
[1764691430671,0.72056911,91107.0,91106.0,7.752e-05]
[1764691432274,0.72056911,91107.0,91105.0,0.0901646]
[1764691432275,0.69356,91094.0,91093.0,0.0109773]
[1764691432465,0.72056911,91094.0,91093.0,0.0109773]
[1764691433068,0.72064663,91094.0,91093.0,0.0109773]
[1764691433371,0.02708663,91094.0,91093.0,0.0109773]
[1764691433572,0.02708663,91094.0,91093.0,0.3419973]
[1764691434361,0.02708663,91094.0,91093.0,0.6843373]
[1764691434558,3e-08,91094.0,91093.0,0.6843373]
[1764691435369,0.33771003,91094.0,91087.0,0.46246]
[1764691435570,0.39666069,91093.0,91092.0,0.0109775]
[1764691435968,0.33771,91093.0,91092.0,0.0109775]
[1764691436276,3e-08,91094.0,91092.0,0.0109775]
[1764691440374,3e-08,91094.0,91093.0,0.3608]
[1764691440770,0.0001646,91103.0,91102.0,0.3533163]
[1764691441076,0.0001646,91103.0,91102.0,1.0451363]
[1764691441264,0.3608,91118.0,91110.0,0.0109754]
[1764691441471,0.3608,91118.0,91112.0,0.3608]
[1764691441670,0.3608,91118.0,91117.0,0.0109745]
[1764691442071,0.69356,91118.0,91117.0,0.0109745]
[1764691442467,0.41479386,91118.0,91114.0,0.0109748]
[1764691442673,0.69356,91115.0,91114.0,0.0109748]
[1764691443081,0.05894386,91119.0,91118.0,0.0109744]
[1764691443283,0.0001646,91127.0,91126.0,0.0109734]
[1764691443284,0.6599646,91127.0,91126.0,0.0109734]
[1764691443777,0.6599646,91127.0,91114.0,0.0109748]
[1764691443778,0.0109738,91123.0,91114.0,0.0109748]
[1764691443985,0.33284,91117.0,91116.0,0.0109746]
[1764691444485,0.05895238,91121.0,91120.0,0.0109742]
[1764691444775,0.71875238,91121.0,91120.0,0.0109742]
[1764691445383,0.6598,91121.0,91120.0,0.0109742]
[1764691445684,0.05903059,91123.0,91120.0,0.3717742]
[1764691445980,0.0001646,91127.0,91120.0,0.3717742]
[1764691445981,0.39187059,91124.0,91123.0,0.0109738]
[1764691446182,0.33284,91124.0,91121.0,0.010974]
[1764691446384,0.05903545,91122.0,91121.0,0.010974]
[1764691446685,0.05903545,91125.0,91124.0,0.0109737]
[1764691447183,0.05903545,91125.0,91104.0,0.010976]
[1764691447184,0.86622,91120.0,91119.0,0.0109742]
[1764691447388,0.8923457,91120.0,91119.0,0.0109742]
[1764691447575,0.0261257,91120.0,91119.0,0.3533242]
[1764691447777,0.05907547,91125.0,91124.0,0.0109737]
[1764691448288,0.02613987,91126.0,91125.0,0.69772]
[1764691448580,0.6598,91123.0,91122.0,0.0109738]
[1764691448786,0.74506407,91123.0,91122.0,0.0109738]
[1764691449080,0.6598,91116.0,91115.0,0.0109748]
[1764691449286,0.68594439,91116.0,91115.0,0.0109748]
[1764691450481,0.02614439,91116.0,91115.0,0.7086948]
[1764691450684,0.05912566,91122.0,91121.0,0.010974]
[1764691451080,0.6598,91112.0,91111.0,0.3608]
[1764691451275,0.68594761,91112.0,91111.0,0.3608]
[1764691452088,0.02614761,91112.0,91111.0,1.05852]
[1764691452281,0.05912566,91119.0,91113.0,0.0109749]
[1764691452282,0.32696,91114.0,91113.0,0.0109749]
[1764691452480,0.68595009,91114.0,91113.0,0.0109749]
[1764691453787,0.68595009,91114.0,91111.0,0.3608]
[1764691453788,0.33284,91112.0,91111.0,0.3608]
[1764691453986,0.35899009,91112.0,91111.0,0.3717751]
[1764691454186,0.02615009,91112.0,91111.0,1.0694951]
[1764691455987,9e-08,91112.0,91111.0,1.1914951]
[1764691456296,0.52524,91132.0,91124.0,0.69772]
[1764691456297,0.05912566,91125.0,91124.0,0.69772]
[1764691456492,0.05912566,91126.0,91125.0,0.7086936]
[1764691457895,0.16685927,91135.0,91125.0,0.3533236]
[1764691458097,0.16685927,91135.0,91125.0,0.0109736]
[1764691458295,0.05909943,91128.0,91126.0,0.69772]
[1764691458901,0.08820312,91135.0,91126.0,0.69772]
[1764691458902,0.05909943,91130.0,91126.0,0.69772]
[1764691459302,0.05909943,91131.0,91126.0,0.69772]
[1764691459894,0.08820312,91135.0,91125.0,0.0109736]
[1764691459895,0.6598,91126.0,91125.0,0.0109736]
[1764691460095,0.05909943,91130.0,91126.0,0.69772]
[1764691460296,0.05909943,91131.0,91126.0,0.69772]
[1764691461610,0.05909943,91130.0,91126.0,0.69772]
[1764691461804,0.05909943,91130.0,91125.0,0.0109736]
[1764691461805,0.41149615,91156.0,91155.0,0.0109699]
[1764691462007,0.03489579,91181.0,91155.0,0.0109699]
[1764691462008,0.3608,91171.0,91170.0,0.0109681]
[1764691462308,0.13557788,91199.0,91180.0,0.34235]
[1764691462491,0.6598,91182.0,91181.0,0.3608]
[1764691462890,0.33284,91182.0,91181.0,0.3608]
[1764691463291,1.58806507,91187.0,91186.0,0.0109662]
[1764691463692,1.58806507,91187.0,91186.0,0.7086862]
[1764691463996,1.5,91187.0,91186.0,0.7086862]
[1764691464202,0.0001645,91191.0,91190.0,0.7086857]
[1764691464395,0.0001645,91191.0,91190.0,1.0694857]
[1764691464993,0.3330045,91191.0,91190.0,0.3717657]
[1764691465189,0.6599645,91191.0,91190.0,0.3717657]
[1764691465792,0.6598,91190.0,91189.0,0.0109658]
[1764691466499,0.0001645,91191.0,91190.0,0.34235]
[1764691466703,0.0001645,91191.0,91190.0,0.69772]
[1764691467794,0.0001645,91191.0,91190.0,1.05852]
[1764691468003,0.20642,91215.0,91201.0,0.69772]
[1764691468191,1.52530119,91202.0,91201.0,1.05852]
[1764691469403,1.52526297,91202.0,91201.0,1.05852]
[1764691470104,0.0001645,91211.0,91210.0,0.69772]
[1764691470298,0.0001645,91211.0,91210.0,0.7086833]
[1764691470498,0.0001645,91211.0,91210.0,1.0694833]
[1764691470710,1.52542618,91211.0,91210.0,1.0694833]
[1764691470902,1.5001645,91211.0,91210.0,1.0694833]
[1764691471411,1.5001645,91211.0,91189.0,0.0109658]
[1764691471412,0.010964,91205.0,91189.0,0.0109658]
[1764691471613,0.6598,91193.0,91164.0,0.3608]
[1764691471905,0.6598,91193.0,91135.0,0.0109723]
[1764691471906,0.6598,91174.0,91173.0,0.0109677]
[1764691472103,1.3814,91174.0,91173.0,0.0109677]
[1764691472304,1.05444,91174.0,91173.0,0.0109677]
[1764691472505,1.05444,91174.0,91170.0,0.0109681]
[1764691473797,0.33284,91171.0,91170.0,0.0109681]
[1764691474202,0.7216,91174.0,91163.0,0.0111334]
[1764691474203,0.0109686,91167.0,91163.0,0.0111334]
[1764691474402,0.7216,91174.0,91163.0,0.0111334]
[1764691474403,0.3608,91164.0,91163.0,0.0111334]
[1764691474607,1.04508,91164.0,91163.0,0.0001645]
[1764691476402,0.68428,91147.0,91129.0,0.00988372]
[1764691476601,0.3608,91130.0,91129.0,0.71511682]
[1764691476795,0.3608,91141.0,91140.0,0.0109717]
[1764691476998,1.04508,91141.0,91140.0,0.0109717]
[1764691478611,0.68428,91137.0,91132.0,0.0109726]
[1764691478801,0.3608,91133.0,91131.0,0.0001646]
[1764691479012,0.68428,91132.0,91131.0,0.0111374]
[1764691479312,0.70953762,91132.0,91131.0,0.0111374]
[1764691480806,0.70953762,91132.0,91131.0,0.0001646]
[1764691481004,0.70953762,91132.0,91095.0,0.37093371]
[1764691481005,0.33814,91112.0,91095.0,0.37093371]
[1764691481205,0.3608,91111.0,91095.0,0.37093371]
[1764691481407,0.3608,91111.0,91110.0,0.0109753]
[1764691481594,0.3608,91111.0,91110.0,0.3589553]
[1764691481801,0.69894,91111.0,91110.0,0.0109753]
[1764691482813,0.3608,91111.0,91110.0,0.0109753]
[1764691483009,0.0001646,91120.0,91119.0,0.0109743]
[1764691483010,0.3383046,91120.0,91119.0,0.0109743]
[1764691483310,0.0001646,91120.0,91119.0,0.7052343]
[1764691484110,0.77309064,91137.0,91136.0,0.0109722]
[1764691484312,0.33814,91133.0,91124.0,0.3608]
[1764691484499,0.02527183,91132.0,91124.0,0.3608]
[1764691484699,0.02527183,91132.0,91113.0,0.88456]
[1764691484700,0.3608,91129.0,91126.0,0.0109734]
[1764691484999,0.33814,91123.0,91110.0,0.0109753]
[1764691485307,0.68428,91121.0,91120.0,0.0109742]
[1764691485501,0.3608,91125.0,91124.0,0.0109737]
[1764691486409,0.0001646,91126.0,91125.0,0.34798]
[1764691487199,0.52372,91144.0,91143.0,0.0109714]
[1764691487399,0.52372,91144.0,91124.0,0.3717737]
[1764691487400,1.04508,91148.0,91147.0,0.0109709]
[1764691487710,9e-08,91148.0,91147.0,0.7052309]
[1764691488005,0.41944773,91168.0,91166.0,0.0109686]
[1764691488203,0.33814,91167.0,91166.0,0.0109686]
[1764691488404,0.68428,91167.0,91166.0,0.0109686]
[1764691488604,0.68428,91167.0,91164.0,0.0109688]
[1764691489113,0.3608,91168.0,91167.0,0.7052285]
[1764691489502,0.0001646,91176.0,91175.0,0.0109675]
[1764691489907,0.0001646,91176.0,91173.0,0.0109677]
[1764691490106,0.33814,91174.0,91173.0,0.0109677]
[1764691491710,0.68428,91174.0,91173.0,0.0109677]
[1764691492914,0.0001646,91176.0,91169.0,0.0109683]
[1764691492915,0.68428,91170.0,91169.0,0.0109683]
[1764691493304,0.0001646,91176.0,91175.0,0.0109675]
[1764691493612,0.99872,91198.0,91175.0,0.0109675]
[1764691493613,0.05864773,91191.0,91190.0,0.0109657]
[1764691493803,0.05864773,91191.0,91186.0,0.7052262]
[1764691493804,0.05864773,91194.0,91192.0,0.7052255]
[1764691494000,0.41944773,91196.0,91195.0,0.7052251]
[1764691494200,0.36107411,91206.0,91205.0,0.0109639]
[1764691494605,0.00027411,91206.0,91205.0,0.7052239]
[1764691495005,0.33841411,91206.0,91196.0,0.00016451]
[1764691495205,0.68428,91197.0,91196.0,0.00016451]
[1764691496316,0.3608,91199.0,91189.0,0.0109658]
[1764691496317,0.68428,91190.0,91189.0,0.0109658]
[1764691496611,1.04508,91190.0,91189.0,0.0109658]
[1764691497115,0.68428,91190.0,91189.0,0.0109658]
[1764691497709,0.33814,91189.0,91188.0,0.010966]
[1764691498018,1.04508,91189.0,91188.0,0.010966]
[1764691498214,0.68428,91189.0,91188.0,0.010966]
[1764691498417,0.3608,91197.0,91196.0,0.010965]
[1764691498914,0.33814,91196.0,91195.0,0.0109651]
[1764691499115,0.00016451,91199.0,91198.0,0.7052248]
[1764691499707,1.5,91211.0,91210.0,0.0109633]
[1764691499909,1.52440067,91211.0,91210.0,0.7197433]
[1764691500119,1.52440067,91211.0,91210.0,1.0660233]
[1764691500304,0.68428,91209.0,91197.0,0.10153]
[1764691500512,0.3608,91206.0,91197.0,0.10153]
[1764691500728,0.3608,91198.0,91197.0,0.10153]
[1764691500912,1.04508,91198.0,91197.0,0.10153]
[1764691501417,1.04508,91198.0,91197.0,0.1124949]
[1764691501615,1.06949455,91198.0,91197.0,0.1124949]
[1764691501805,1.06949455,91198.0,91197.0,0.10153]
[1764691502413,1.06949455,91198.0,91192.0,0.00016451]
[1764691502414,0.6952454,91193.0,91192.0,0.00016451]
[1764691502613,0.71965889,91193.0,91192.0,0.00016451]
[1764691502820,0.70869349,91193.0,91192.0,0.00016451]
[1764691503217,0.02441349,91193.0,91192.0,0.00016451]
[1764691503516,0.3608,91198.0,91197.0,0.0109649]
[1764691503721,0.38521011,91198.0,91197.0,0.0109649]
[1764691504225,0.3608,91207.0,91206.0,0.0109638]
[1764691504419,1.04463612,91207.0,91206.0,0.0109638]
[1764691504623,1.04463612,91207.0,91203.0,0.0109642]
[1764691504918,0.02440612,91206.0,91204.0,0.0109641]
[1764691505116,0.3608,91207.0,91206.0,0.6981438]
[1764691505507,1.50016451,91211.0,91210.0,0.0109633]
[1764691505718,1.52455809,91211.0,91210.0,0.0109633]
[1764691505918,0.65943,91210.0,91209.0,0.0109634]
[1764691506219,0.02439326,91210.0,91209.0,0.0109635]
[1764691506821,0.02439326,91210.0,91209.0,0.3663035]
[1764691507418,1.86096451,91211.0,91209.0,0.3663035]
[1764691508229,0.65943,91210.0,91209.0,0.0109635]
[1764691509027,0.36096451,91211.0,91210.0,0.68718]
[1764691509221,0.00016451,91211.0,91210.0,0.68718]
[1764691510822,0.88412,91232.0,91231.0,0.0109608]
[1764691511011,0.38517262,91232.0,91231.0,0.6981408]
[1764691511413,2e-08,91232.0,91231.0,0.6981408]
[1764691511623,0.08980601,91236.0,91235.0,0.68718]
[1764691511932,1.5,91252.0,91245.0,0.6981391]
[1764691512121,9e-08,91246.0,91245.0,1.0589391]
[1764691512620,0.33432009,91246.0,91245.0,0.0109591]
[1764691512822,0.33432009,91246.0,91236.0,0.00016442]
[1764691512823,0.0109592,91244.0,91236.0,0.00016442]
[1764691513025,0.3608,91237.0,91236.0,0.00016442]
[1764691513522,1.02023,91237.0,91236.0,0.00016442]
[1764691514025,0.0109602,91236.0,91200.0,0.26020263]
[1764691514217,0.0109602,91236.0,91190.0,0.26020263]
[1764691514218,0.3608,91213.0,91190.0,0.26020263]
[1764691514527,0.3608,91213.0,91210.0,0.0109632]
[1764691515421,0.52332442,91221.0,91202.0,0.00016442]
[1764691515422,0.00016442,91221.0,91220.0,0.6981421]
[1764691515621,0.00016442,91221.0,91220.0,1.0589421]
[1764691516031,2e-08,91221.0,91220.0,1.0589421]
[1764691516422,2e-08,91221.0,91220.0,0.6981421]
[1764691517523,4.002e-05,91221.0,91220.0,0.6981421]
[1764691517726,4.002e-05,91221.0,91220.0,0.0109621]
[1764691518233,4.002e-05,91221.0,91220.0,0.6981421]
[1764691519428,4.002e-05,91221.0,91220.0,0.0109621]
[1764691519625,4.002e-05,91221.0,91220.0,0.6981421]
[1764691520026,0.3608,91232.0,91220.0,0.6981421]
[1764691520027,0.3608,91232.0,91231.0,0.3663008]
[1764691520225,0.3608,91232.0,91231.0,0.6981408]
[1764691520633,0.05864773,91238.0,91231.0,0.6981408]
[1764691520825,0.05864773,91241.0,91240.0,0.6981397]
[1764691521022,0.3608,91257.0,91244.0,0.0109592]
[1764691521023,0.00016442,91250.0,91244.0,0.0109592]
[1764691521524,0.05883648,91245.0,91244.0,0.6981392]
[1764691521731,0.00016442,91250.0,91244.0,0.6981392]
[1764691522119,0.3608,91248.0,91244.0,0.0109592]
[1764691522522,0.00020442,91250.0,91244.0,0.3717592]
[1764691523533,0.02448759,91245.0,91244.0,0.3557992]
[1764691523731,0.02448759,91245.0,91244.0,0.7031992]
[1764691524037,1.5,91249.0,91244.0,0.7031992]
[1764691524231,0.00020442,91250.0,91244.0,0.7031992]
[1764691524232,0.00020442,91250.0,91244.0,0.0109592]
[1764691524435,0.05883648,91262.0,91261.0,0.7031972]
[1764691524436,8e-08,91262.0,91261.0,0.7031972]
[1764691524626,0.43889964,91272.0,91271.0,0.703196]
[1764691524830,1.93889964,91272.0,91271.0,0.358356]
[1764691525335,0.43889964,91272.0,91271.0,0.010956]
[1764691525533,0.6891,91263.0,91262.0,0.00016442]
[1764691525838,1.0499,91263.0,91262.0,0.00016442]
[1764691526038,0.39624135,91272.0,91265.0,0.0109566]
[1764691526239,0.38528535,91272.0,91262.0,0.00016442]
[1764691526423,0.3608,91272.0,91262.0,0.00016442]
[1764691526828,0.3608,91272.0,91269.0,0.0109562]
[1764691527528,0.34344,91266.0,91265.0,0.0109567]
[1764691527728,0.3608,91272.0,91263.0,0.0109569]
[1764691527729,0.6891,91264.0,91263.0,0.0109569]
[1764691527928,1.0499,91264.0,91263.0,0.0109569]
[1764691528135,1.0499,91264.0,91262.0,0.00016442]
[1764691528336,0.34344,91263.0,91262.0,0.00016442]
[1764691528740,0.34344,91263.0,91262.0,0.01112142]
[1764691529125,0.6891,91263.0,91262.0,0.00016442]
[1764691529325,0.3608,91264.0,91263.0,0.358357]
[1764691529527,0.19729,91290.0,91262.0,0.01112152]
[1764691529528,0.6891,91263.0,91262.0,0.01112152]
[1764691529937,0.90153,91273.0,91272.0,0.0109559]
[1764691530132,0.6891,91273.0,91272.0,0.0109559]
[1764691530841,0.3608,91274.0,91272.0,0.0109559]
[1764691531433,0.6891,91272.0,91271.0,0.0109559]
[1764691531939,0.6891,91268.0,91267.0,0.0109564]
[1764691534029,0.371756,91272.0,91262.0,0.00016442]
[1764691534030,0.66924,91263.0,91262.0,0.00016442]
[1764691534229,1.03004,91263.0,91262.0,0.00016442]
[1764691534437,1.03004,91263.0,91227.0,0.3608]
[1764691534438,0.10971,91256.0,91227.0,0.3608]
[1764691534643,0.10971,91256.0,91220.0,0.26020263]
[1764691534644,0.3268,91233.0,91220.0,0.0109621]
[1764691534943,0.3268,91233.0,91232.0,0.0109607]
[1764691535139,1.03004,91233.0,91232.0,0.0109607]
[1764691535340,1.03004,91233.0,91218.0,0.01014672]
[1764691535341,0.66924,91224.0,91218.0,0.01014672]
[1764691535542,0.3608,91233.0,91218.0,0.01014672]
[1764691535543,1.03004,91219.0,91218.0,0.01014672]
[1764691535741,1.03004,91219.0,91212.0,0.00016442]
[1764691536041,0.3608,91219.0,91216.0,0.0109625]
[1764691536230,0.00016442,91230.0,91221.0,0.35791]
[1764691536537,0.66940442,91230.0,91229.0,0.010961]
[1764691536736,0.66924,91226.0,91212.0,0.00016442]
[1764691536933,0.36096442,91230.0,91212.0,0.00016442]
[1764691536934,1.03004,91219.0,91218.0,0.0109624]
[1764691537139,0.6876,91219.0,91218.0,0.0109624]
[1764691537342,0.3608,91219.0,91218.0,0.7191824]
[1764691537541,0.36096442,91230.0,91229.0,0.010961]
[1764691537735,1.03020442,91230.0,91229.0,0.010961]
[1764691538043,1.03020442,91230.0,91212.0,0.00016442]
[1764691538044,0.3268,91225.0,91212.0,0.00016442]
[1764691538257,0.66924,91225.0,91224.0,0.0109616]
[1764691538447,0.02424903,91225.0,91224.0,1.0799816]
[1764691538745,0.00016442,91230.0,91229.0,0.719181]
[1764691538941,0.3608,91243.0,91242.0,0.3688695]
[1764691539838,1.03039,91243.0,91242.0,0.0109595]
[1764691540844,1.03039,91243.0,91233.0,0.00016442]
[1764691540845,0.66959,91239.0,91238.0,0.0109599]
[1764691541043,0.3608,91243.0,91242.0,0.0109595]
[1764691541351,1.03039,91243.0,91242.0,0.0109595]
[1764691541541,0.32752,91234.0,91233.0,0.01112502]
[1764691542044,1.03039,91243.0,91242.0,0.0109595]
[1764691542641,0.3608,91243.0,91242.0,0.3557695]
[1764691543034,0.68832,91243.0,91242.0,0.0109595]
[1764691543353,0.66959,91234.0,91233.0,0.00016442]
[1764691543532,1.0413504,91234.0,91233.0,0.00016442]
[1764691543732,0.66959,91234.0,91233.0,0.00016442]
[1764691543934,1.03039,91234.0,91233.0,0.00016442]
[1764691544445,1.03039,91234.0,91184.0,0.00011216]